bitfinex/quotes_BTCUSD_20240611
["timestamp","ask_amount","ask_price","bid_price","bid_amount"]
[1718146617824,0.40988293,67384.0,67383.0,0.01304497]
[1718146620338,0.38858293,67384.0,67383.0,0.01304497]
[1718146623901,0.41583868,67384.0,67383.0,0.01304497]
[1718146628552,0.41583868,67384.0,67383.0,0.1361633]
[1718146628986,0.34383868,67384.0,67383.0,0.1361633]
[1718146629208,0.05111575,67384.0,67383.0,0.3223633]
[1718146629414,0.05111575,67384.0,67383.0,0.4045633]
[1718146629619,0.05111575,67384.0,67383.0,0.44904588]
[1718146630469,0.03711575,67384.0,67383.0,0.44904588]
[1718146630722,0.04811575,67384.0,67383.0,0.44904588]
[1718146631359,0.03711575,67384.0,67383.0,0.44904588]
[1718146631570,0.04811575,67384.0,67383.0,0.44904588]
[1718146631796,0.03911575,67384.0,67383.0,0.44804588]
[1718146632211,0.04811575,67384.0,67383.0,0.4045633]
[1718146632449,0.03911575,67384.0,67383.0,0.44804581]
[1718146632664,0.11111575,67384.0,67383.0,0.44904581]
[1718146632876,0.12011575,67384.0,67383.0,0.44904581]
[1718146633381,0.12011575,67384.0,67383.0,0.44904629]
[1718146633600,0.02086,67384.0,67383.0,0.44904629]
[1718146633812,0.02086,67384.0,67383.0,0.36684629]
[1718146634050,0.02086,67384.0,67383.0,0.20364629]
[1718146634051,0.38558293,67384.0,67383.0,0.20364629]
[1718146634489,0.38558293,67384.0,67383.0,0.03604497]
[1718146635158,0.38558293,67384.0,67383.0,0.15916597]
[1718146635594,0.38558293,67384.0,67383.0,0.03604497]
[1718146636019,0.38558293,67384.0,67383.0,0.15916452]
[1718146636248,0.38558293,67384.0,67383.0,0.40556452]
[1718146636249,0.02086,67384.0,67383.0,0.40556452]
[1718146636480,0.02086,67384.0,67383.0,0.40556247]
[1718146636896,0.02086,67384.0,67383.0,0.40556106]
[1718146637340,0.02086,67384.0,67383.0,0.4055588]
[1718146638249,0.02086,67384.0,67383.0,0.45004527]
[1718146638513,0.02086,67384.0,67383.0,0.4055588]
[1718146641296,0.02086,67384.0,67383.0,0.45004527]
[1718146641538,0.02086,67384.0,67383.0,0.4055588]
[1718146642030,0.02086,67384.0,67383.0,0.45004527]
[1718146643148,0.38593282,67384.0,67383.0,0.1361588]
[1718146643407,0.40593282,67384.0,67383.0,0.1361588]
[1718146643617,0.40593282,67384.0,67383.0,0.01304497]
[1718146643821,0.38593282,67384.0,67383.0,0.001946]
[1718146644034,0.40593282,67384.0,67383.0,0.001946]
[1718146646920,0.40593282,67384.0,67383.0,0.01303807]
[1718146647158,0.40593282,67384.0,67383.0,0.001946]
[1718146647384,0.40593282,67384.0,67383.0,0.01303807]
[1718146651906,0.38593282,67384.0,67383.0,0.01303807]
[1718146652693,0.36638293,67384.0,67383.0,0.01303807]
[1718146653657,0.31258293,67384.0,67383.0,0.01303807]
[1718146653873,0.38458293,67384.0,67383.0,0.01303807]
[1718146654476,0.40458293,67384.0,67383.0,0.01303807]
[1718146662170,0.38458293,67384.0,67383.0,0.01303807]
[1718146663180,0.38544293,67384.0,67383.0,0.01303807]
[1718146665215,0.42674293,67384.0,67383.0,0.001946]
[1718146665369,0.40544293,67384.0,67383.0,0.001946]
[1718146665611,0.40544293,67384.0,67383.0,0.01291546]
[1718146665808,0.40544293,67384.0,67383.0,0.001946]
[1718146666055,0.40544293,67384.0,67383.0,0.01291546]
[1718146667792,0.38544293,67384.0,67383.0,0.01291546]
[1718146670400,0.45900542,67384.0,67383.0,0.01291546]
[1718146670614,0.43900542,67384.0,67383.0,0.01291546]
[1718146670785,0.45900542,67384.0,67383.0,0.01291546]
[1718146671819,0.40544293,67384.0,67383.0,0.01291546]
[1718146677126,0.63924293,67384.0,67383.0,0.01291546]
[1718146677544,0.63924293,67384.0,67383.0,0.001946]
[1718146677958,0.88419524,67384.0,67383.0,0.001946]
[1718146678189,0.63924293,67384.0,67383.0,0.001946]
[1718146678654,0.93604893,67384.0,67383.0,0.001946]
[1718146678875,1.05407761,67384.0,67383.0,0.001946]
[1718146681100,0.168409,67381.0,67380.0,0.000946]
[1718146681345,0.48472893,67381.0,67380.0,0.000946]
[1718146681900,0.48472893,67381.0,67380.0,0.01138301]
[1718146682314,0.48872893,67381.0,67380.0,0.01138301]
[1718146682529,0.89045629,67381.0,67380.0,0.01138301]
[1718146683384,0.89745629,67381.0,67380.0,0.01138301]
[1718146684895,0.89745629,67381.0,67380.0,0.000946]
[1718146697294,0.91539615,67381.0,67380.0,0.000946]
[1718146699551,0.91539615,67381.0,67370.0,0.2316]
[1718146699552,0.148431,67371.0,67370.0,0.2316]
[1718146699761,0.148431,67371.0,67370.0,0.3643845]
[1718146699762,0.78161393,67371.0,67370.0,0.3643845]
[1718146699983,0.78161393,67371.0,67370.0,0.24124677]
[1718146701701,0.78861393,67371.0,67370.0,0.24124677]
[1718146701941,0.78961393,67371.0,67370.0,0.24124677]
[1718146702511,0.76861393,67371.0,67370.0,0.2316]
[1718146702709,0.79761393,67371.0,67370.0,0.2316]
[1718146702936,0.79761393,67371.0,67370.0,0.24128322]
[1718146708941,0.72561393,67371.0,67370.0,0.24128322]
[1718146709143,0.85952991,67371.0,67370.0,0.24128322]
[1718146711563,0.87759967,67371.0,67370.0,0.24128322]
[1718146715210,0.90477412,67371.0,67370.0,0.24128322]
[1718146715727,0.90477412,67371.0,67370.0,0.08648322]
[1718146718216,0.88477412,67371.0,67370.0,0.00968322]
[1718146718435,0.90477412,67371.0,67370.0,0.00968322]
[1718146718646,0.90477412,67371.0,67368.0,0.15065996]
[1718146718647,0.148436,67369.0,67368.0,0.15065996]
[1718146718852,0.38536384,67369.0,67368.0,0.15065996]
[1718146720552,0.39036384,67369.0,67368.0,0.15065996]
[1718146720779,0.39736384,67369.0,67368.0,0.15065996]
[1718146720997,0.30475593,67369.0,67368.0,0.15065996]
[1718146724990,0.32475593,67369.0,67368.0,0.15065996]
[1718146726495,0.30475593,67369.0,67368.0,0.15065996]
[1718146729596,0.30475593,67369.0,67368.0,0.15160596]
[1718146729799,0.30475593,67369.0,67368.0,0.16131866]
[1718146730009,0.32475593,67369.0,67368.0,0.16131866]
[1718146732458,0.40864224,67369.0,67368.0,0.16131866]
[1718146732879,0.40864224,67369.0,67368.0,0.15160596]
[1718146733928,0.32475593,67369.0,67368.0,0.15160596]
[1718146734291,0.32475593,67369.0,67368.0,0.16131114]
[1718146735913,0.30475593,67369.0,67368.0,0.16131114]
[1718146742646,0.30475593,67369.0,67368.0,0.46785941]
[1718146742647,0.012,67369.0,67368.0,0.46785941]
[1718146743252,0.012,67369.0,67368.0,0.51234436]
[1718146743925,0.012,67369.0,67368.0,0.53458683]
[1718146746981,0.012,67369.0,67368.0,0.46785941]
[1718146749120,0.012,67369.0,67368.0,0.46785037]
[1718146750083,0.160436,67369.0,67368.0,0.46785037]
[1718146751342,0.160436,67369.0,67368.0,0.5123446]
[1718146755220,0.160436,67369.0,67368.0,0.5123383]
[1718146756840,0.160436,67369.0,67368.0,0.51233878]
[1718146759936,0.160436,67369.0,67368.0,0.46785085]
[1718146760389,0.160436,67369.0,67368.0,0.51233878]
[1718146761478,0.160436,67369.0,67368.0,0.51233143]
[1718146767595,0.160436,67369.0,67368.0,0.46785085]
[1718146773112,0.159436,67369.0,67368.0,0.46785085]
[1718146773845,0.159436,67369.0,67368.0,0.34471114]
[1718146774057,0.159436,67369.0,67368.0,0.46785094]
[1718146776177,0.159436,67369.0,67368.0,0.51233152]
[1718146779654,0.159436,67369.0,67368.0,0.51233187]
[1718146782237,0.159436,67369.0,67368.0,0.46785129]
[1718146783305,0.148438,67368.0,67367.0,0.01235531]
[1718146783517,0.148442,67367.0,67365.0,0.06676227]
[1718146783955,0.148442,67367.0,67366.0,0.0445085]
[1718146784169,0.148442,67367.0,67365.0,0.06676227]
[1718146784382,0.148442,67367.0,67366.0,0.04451219]
[1718146784969,0.148442,67367.0,67365.0,0.06676735]
[1718146785173,0.148442,67367.0,67362.0,0.11222493]
[1718146785174,0.148442,67367.0,67366.0,0.06676735]
[1718146785395,0.148442,67367.0,67366.0,0.023]
[1718146786015,0.153442,67367.0,67366.0,0.06751794]
[1718146786218,0.153442,67367.0,67366.0,0.29271794]
[1718146786419,0.152442,67367.0,67366.0,0.29271794]
[1718146786853,0.152442,67367.0,67366.0,0.2482]
[1718146786854,0.154442,67367.0,67366.0,0.2482]
[1718146787062,0.154442,67367.0,67366.0,0.29271487]
[1718146787708,0.154442,67367.0,67366.0,0.2482]
[1718146790146,0.006,67367.0,67366.0,0.2482]
[1718146790359,0.006,67367.0,67366.0,0.33722314]
[1718146790592,0.006,67367.0,67366.0,0.55604833]
[1718146790820,0.006,67367.0,67366.0,0.56278285]
[1718146792506,0.006,67367.0,67366.0,0.67405685]
[1718146792916,0.006,67367.0,67366.0,0.66732233]
[1718146793119,0.006,67367.0,67366.0,0.55604833]
[1718146793361,0.006,67367.0,67366.0,0.66732033]
[1718146793597,0.006,67367.0,67366.0,0.66730852]
[1718146794224,0.006,67367.0,67366.0,0.66825452]
[1718146795457,0.006,67367.0,67366.0,0.19125452]
[1718146796391,0.006,67367.0,67366.0,0.023946]
[1718146796557,0.006,67367.0,67366.0,0.000946]
[1718146796986,0.006,67367.0,67366.0,0.08995945]
[1718146797563,0.006,67367.0,67366.0,0.11295945]
[1718146798568,0.006,67367.0,67366.0,0.34405945]
[1718146800873,0.006,67367.0,67366.0,0.34405694]
[1718146802348,0.006,67367.0,67366.0,0.29685689]
[1718146802568,0.006,67367.0,67366.0,0.255046]
[1718146803490,0.006,67367.0,67366.0,0.275046]
[1718146803915,0.006,67367.0,67366.0,0.255046]
[1718146804545,0.002,67367.0,67366.0,0.255046]
[1718146805444,0.00086,67369.0,67366.0,0.275046]
[1718146805701,0.00086,67369.0,67368.0,0.30055996]
[1718146806129,0.00086,67369.0,67368.0,0.32355996]
[1718146806549,0.00086,67369.0,67368.0,0.62407989]
[1718146806765,0.00086,67369.0,67368.0,0.88156789]
[1718146806974,0.00086,67369.0,67368.0,0.88456789]
[1718146807629,0.00086,67380.0,67368.0,0.98456789]
[1718146807869,0.00086,67383.0,67382.0,0.649057]
[1718146808096,0.48016,67393.0,67392.0,0.1562]
[1718146808369,0.00086,67393.0,67392.0,0.79597578]
[1718146808602,0.00086,67393.0,67392.0,0.72397578]
[1718146809121,0.00086,67393.0,67392.0,0.32397578]
[1718146809332,0.00086,67393.0,67392.0,0.8448849]
[1718146809555,0.00186,67393.0,67392.0,0.8488849]
[1718146809983,0.00857,67408.0,67395.0,0.26525]
[1718146810187,0.00857,67408.0,67395.0,0.50456993]
[1718146810816,0.00857,67408.0,67395.0,0.48456993]
[1718146811023,0.00857,67408.0,67395.0,0.5199847]
[1718146811235,0.00857,67408.0,67395.0,0.5399847]
[1718146812053,0.00186,67396.0,67395.0,0.7850847]
[1718146812458,0.00286,67396.0,67395.0,0.7900847]
[1718146812674,0.00286,67396.0,67395.0,0.7850847]
[1718146813103,0.00386,67396.0,67395.0,0.7900847]
[1718146813510,0.00286,67396.0,67395.0,0.7840847]
[1718146813732,0.00286,67396.0,67395.0,0.9354627]
[1718146813733,0.00386,67396.0,67395.0,0.9354627]
[1718146813935,0.00386,67396.0,67395.0,1.0018873]
[1718146814377,0.00386,67396.0,67395.0,0.9354627]
[1718146814652,0.00286,67396.0,67395.0,0.97669482]
[1718146814919,0.00286,67396.0,67395.0,0.97969482]
[1718146815153,0.00186,67396.0,67395.0,0.9304627]
[1718146815412,0.00286,67396.0,67395.0,0.9354627]
[1718146815641,0.00186,67396.0,67395.0,0.9304627]
[1718146816053,0.00186,67396.0,67395.0,0.9324627]
[1718146817668,0.00286,67396.0,67395.0,0.9354627]
[1718146819715,0.00286,67396.0,67395.0,1.1354627]
[1718146821266,0.00286,67396.0,67395.0,0.8634627]
[1718146821467,0.00286,67396.0,67395.0,0.9354627]
[1718146822068,0.00286,67396.0,67395.0,0.82804793]
[1718146822276,0.00286,67396.0,67395.0,0.90004793]
[1718146828564,0.00286,67396.0,67395.0,1.49680493]
[1718146828787,0.00286,67396.0,67395.0,1.80444289]
[1718146829211,0.00286,67396.0,67395.0,1.49680493]
[1718146829422,0.00286,67396.0,67395.0,1.80444132]
[1718146829632,0.00186,67396.0,67395.0,1.79944132]
[1718146829835,0.00086,67396.0,67395.0,1.79644132]
[1718146830056,0.00086,67396.0,67395.0,1.81424292]
[1718146830260,0.00086,67396.0,67395.0,1.61424292]
[1718146830464,0.00086,67396.0,67395.0,1.48880493]
[1718146830923,0.00086,67396.0,67395.0,1.79642276]
[1718146831182,0.00186,67396.0,67395.0,1.80642276]
[1718146831636,0.00286,67396.0,67395.0,1.80142276]
[1718146831836,0.00186,67396.0,67395.0,1.8192247]
[1718146832045,0.00086,67396.0,67395.0,1.79642276]
[1718146832247,0.00086,67396.0,67395.0,1.97200477]
[1718146833094,0.00186,67396.0,67395.0,1.98500477]
[1718146834184,0.00186,67396.0,67395.0,2.02925697]
[1718146836293,0.00857,67408.0,67407.0,0.02]
[1718146836524,0.00857,67408.0,67407.0,1.26643208]
[1718146837572,0.00957,67408.0,67407.0,1.27243208]
[1718146838198,0.00957,67408.0,67407.0,1.28143208]
[1718146838403,0.01057,67408.0,67407.0,1.28143208]
[1718146850416,0.01057,67408.0,67407.0,1.36994477]
[1718146851257,0.01057,67408.0,67407.0,1.39207295]
[1718146851474,0.01057,67408.0,67407.0,1.28143208]
[1718146851684,0.01057,67408.0,67407.0,1.39218721]
[1718146851868,0.01057,67408.0,67407.0,1.39216206]
[1718146852074,0.01057,67408.0,67407.0,1.28140693]
[1718146852441,0.01057,67408.0,67407.0,1.28141165]
[1718146853278,0.01057,67408.0,67407.0,1.40444963]
[1718146854793,0.01057,67408.0,67407.0,1.53735578]
[1718146855225,0.01057,67408.0,67407.0,1.96475274]
[1718146855438,0.01057,67408.0,67407.0,1.83184659]
[1718146855660,0.01057,67408.0,67407.0,1.83183517]
[1718146856086,0.01057,67408.0,67407.0,1.40443821]
[1718146856529,0.01057,67408.0,67407.0,1.67045647]
[1718146856754,0.01057,67408.0,67407.0,1.17070585]
[1718146857187,0.01057,67408.0,67407.0,1.30389261]
[1718146857405,0.01057,67408.0,67407.0,1.30390432]
[1718146857624,0.01057,67408.0,67407.0,1.28390432]
[1718146858074,0.01057,67408.0,67407.0,0.99631834]
[1718146858261,0.01057,67408.0,67407.0,1.30390929]
[1718146858470,0.01057,67408.0,67407.0,1.28390929]
[1718146858932,0.01057,67408.0,67407.0,1.30390929]
[1718146860417,0.01057,67408.0,67407.0,1.28390929]
[1718146860870,0.01057,67408.0,67407.0,1.30390929]
[1718146861082,0.01057,67408.0,67407.0,1.18087131]
[1718146861290,0.01057,67408.0,67407.0,1.3039074]
[1718146861970,0.01057,67408.0,67407.0,1.303945]
[1718146862186,0.01057,67408.0,67407.0,1.283945]
[1718146862409,0.01057,67408.0,67407.0,1.211945]
[1718146862627,0.01057,67408.0,67407.0,1.3039436]
[1718146862853,0.01057,67408.0,67407.0,1.2119436]
[1718146863069,0.09307,67408.0,67407.0,1.15070753]
[1718146863282,0.24507,67408.0,67407.0,1.15070753]
[1718146863712,0.24507,67408.0,67407.0,1.15071668]
[1718146863929,0.24507,67408.0,67407.0,1.17071668]
[1718146864587,0.24507,67408.0,67407.0,1.17074037]
[1718146864801,0.24507,67408.0,67407.0,1.17073989]
[1718146865005,0.24507,67408.0,67407.0,1.17073922]
[1718146867083,0.24507,67408.0,67407.0,0.84312665]
[1718146867315,0.24507,67408.0,67407.0,1.17073833]
[1718146869059,0.01057,67408.0,67407.0,1.17073833]
[1718146872639,0.01057,67408.0,67407.0,1.17073385]
[1718146874042,0.01057,67408.0,67407.0,1.3039996]
[1718146874266,0.01057,67408.0,67407.0,1.17073385]
[1718146874497,0.00086,67414.0,67413.0,0.413589]
[1718146874712,0.00086,67414.0,67413.0,1.21692454]
[1718146875337,0.00086,67414.0,67413.0,1.21694448]
[1718146875551,0.00086,67414.0,67413.0,1.08354782]
[1718146875766,0.00186,67414.0,67413.0,1.08354782]
[1718146876220,0.00086,67414.0,67413.0,1.08354853]
[1718146876434,0.00086,67414.0,67413.0,1.08454853]
[1718146876639,0.00086,67414.0,67413.0,1.71793212]
[1718146876849,0.00086,67414.0,67413.0,1.58454853]
[1718146877123,0.00086,67414.0,67413.0,1.58654853]
[1718146877343,0.00086,67414.0,67413.0,2.42912653]
[1718146877567,0.00086,67414.0,67413.0,2.62859485]
[1718146877793,0.00086,67414.0,67413.0,3.32222769]
[1718146878010,0.00086,67414.0,67413.0,3.30633208]
[1718146878224,0.00086,67414.0,67413.0,2.86844]
[1718146878418,0.00086,67414.0,67413.0,2.86744]
[1718146878678,0.00086,67414.0,67413.0,3.178118]
[1718146878890,0.00186,67414.0,67413.0,3.62801008]
[1718146879328,0.00086,67414.0,67413.0,3.61401008]
[1718146879770,0.00186,67414.0,67413.0,3.62801008]
[1718146879941,0.00186,67414.0,67413.0,3.61401008]
[1718146880393,0.00186,67414.0,67413.0,3.62801008]
[1718146880593,0.00186,67414.0,67413.0,3.82471588]
[1718146882402,0.00186,67414.0,67413.0,3.62801008]
[1718146883232,0.00186,67414.0,67413.0,2.48875408]
[1718146883438,0.00186,67414.0,67413.0,1.68195417]
[1718146883652,0.00186,67414.0,67413.0,1.53953033]
[1718146883859,0.08166,67414.0,67413.0,1.61153033]
[1718146884729,0.08166,67414.0,67413.0,1.51953033]
[1718146884941,0.08166,67414.0,67413.0,1.59153033]
[1718146885354,0.24376,67414.0,67413.0,1.59153033]
[1718146885767,0.24376,67414.0,67413.0,1.61153033]
[1718146885974,0.24376,67414.0,67413.0,1.59153033]
[1718146886176,0.24376,67414.0,67413.0,0.4586214]
[1718146886378,0.24376,67414.0,67413.0,0.52521027]
[1718146886693,0.24376,67414.0,67413.0,0.19541184]
[1718146886891,0.24376,67414.0,67413.0,0.1510142]
[1718146887564,0.24376,67414.0,67413.0,0.16004989]
[1718146888012,0.24376,67414.0,67413.0,0.17204989]
[1718146888451,0.24276,67414.0,67413.0,0.15804989]
[1718146888665,0.24276,67414.0,67413.0,0.16904989]
[1718146888666,0.24376,67414.0,67413.0,0.16904989]
[1718146890493,0.24376,67414.0,67413.0,0.2134464]
[1718146891166,0.24376,67414.0,67413.0,0.16904989]
[1718146891385,0.24376,67414.0,67413.0,0.21343893]
[1718146891606,0.24376,67414.0,67413.0,0.16904989]
[1718146892511,0.24376,67414.0,67413.0,0.21343926]
[1718146893479,0.24276,67414.0,67413.0,0.21343926]
[1718146896987,0.24276,67414.0,67413.0,0.21343664]
[1718146897637,0.24276,67414.0,67413.0,0.16904989]
[1718146898060,0.00857,67415.0,67413.0,0.16904989]
[1718146898277,0.00857,67415.0,67414.0,0.30031945]
[1718146898492,0.00857,67415.0,67414.0,0.36691422]
[1718146898702,0.00857,67415.0,67414.0,0.67450168]
[1718146898937,0.00857,67415.0,67414.0,0.69669993]
[1718146899166,0.00857,67415.0,67414.0,0.71669993]
[1718146900180,0.00957,67415.0,67414.0,0.71669993]
[1718146900979,0.00086,67418.0,67417.0,0.16833]
[1718146901272,0.00086,67418.0,67417.0,0.45295257]
[1718146901522,0.00086,67418.0,67417.0,0.69396735]
[1718146902229,0.00086,67418.0,67417.0,0.70096735]
[1718146902664,0.00068145,67418.0,67417.0,0.70096735]
[1718146903073,0.00068145,67418.0,67417.0,0.70696735]
[1718146903728,0.00068145,67418.0,67417.0,0.68696735]
[1718146903969,0.00068145,67418.0,67417.0,0.77912731]
[1718146904176,0.00068145,67418.0,67417.0,0.86789088]
[1718146905781,0.00068145,67418.0,67417.0,0.84789088]
[1718146906420,0.00068145,67418.0,67417.0,0.70373092]
[1718146906633,0.08308145,67418.0,67417.0,0.70373092]
[1718146907033,0.08308145,67418.0,67417.0,0.61496735]
[1718146909915,0.08308145,67418.0,67417.0,0.61495504]
[1718146910261,0.08308145,67418.0,67417.0,0.30737989]
[1718146910873,0.08308145,67418.0,67417.0,0.6149546]
[1718146911893,0.08308145,67418.0,67417.0,0.68711456]
[1718146912096,0.16608145,67418.0,67417.0,0.68711456]
[1718146913360,0.16608145,67418.0,67417.0,0.77587813]
[1718146913533,0.00068145,67418.0,67417.0,0.77587813]
[1718146914326,0.00068145,67418.0,67417.0,0.77585835]
[1718146917760,0.00068145,67418.0,67417.0,0.65282824]
[1718146918004,0.00068145,67418.0,67417.0,0.77585842]
[1718146918875,0.00068145,67418.0,67417.0,0.62752842]
[1718146924994,0.00068145,67418.0,67417.0,0.86982842]
[1718146925669,0.00068145,67418.0,67417.0,0.78106485]
[1718146925861,0.00068145,67418.0,67417.0,0.80106485]
[1718146926488,0.00068145,67418.0,67417.0,0.81981035]
[1718146926895,0.00068145,67418.0,67417.0,0.80201085]
[1718146927117,0.00068145,67418.0,67417.0,0.81981035]
[1718146927327,0.00068145,67418.0,67417.0,0.93083401]
[1718146927535,0.00068145,67418.0,67417.0,0.59637405]
[1718146927776,0.00068145,67418.0,67417.0,0.46755089]
[1718146927777,0.23158145,67418.0,67417.0,0.46755089]
[1718146928033,0.00068145,67418.0,67417.0,0.53338313]
[1718146928244,0.23158145,67418.0,67417.0,0.22580842]
[1718146928452,0.23158145,67418.0,67417.0,0.13697618]
[1718146928904,0.23158145,67418.0,67417.0,0.13699248]
[1718146929153,0.23158145,67418.0,67417.0,0.12399248]
[1718146929359,0.23158145,67418.0,67417.0,0.19442121]
[1718146929590,0.23158145,67418.0,67417.0,0.19842121]
[1718146929828,0.30358145,67418.0,67417.0,0.13099248]
[1718146930040,0.30358145,67418.0,67417.0,0.12699248]
[1718146930469,0.32358145,67418.0,67417.0,0.12699248]
[1718146930702,0.50426759,67418.0,67417.0,0.12699248]
[1718146930924,1.04524352,67418.0,67417.0,0.000946]
[1718146931361,1.24524352,67418.0,67417.0,0.000946]
[1718146931594,1.24524352,67418.0,67417.0,0.002946]
[1718146931803,1.24524352,67418.0,67417.0,0.005946]
[1718146932181,1.46010552,67418.0,67417.0,0.002946]
[1718146932595,1.04524352,67418.0,67417.0,0.000946]
[1718146933000,1.16840252,67418.0,67417.0,0.000946]
[1718146933528,1.17240252,67418.0,67417.0,0.000946]
[1718146934376,1.01688538,67418.0,67417.0,0.000946]
[1718146934582,1.02488538,67418.0,67417.0,0.001946]
[1718146935002,1.02088538,67418.0,67417.0,0.001946]
[1718146935222,1.01288538,67418.0,67417.0,0.000946]
[1718146935486,1.02088538,67418.0,67417.0,0.001946]
[1718146935690,1.02088538,67418.0,67417.0,0.002946]
[1718146935691,1.04212419,67418.0,67417.0,0.002946]
[1718146935844,1.18399619,67418.0,67417.0,0.001946]
[1718146936052,1.04212419,67418.0,67417.0,0.002946]
[1718146938134,1.14633661,67418.0,67417.0,0.002946]
[1718146939217,1.04212419,67418.0,67417.0,0.002946]
[1718146939451,0.50914826,67418.0,67417.0,0.025946]
[1718146939659,0.58114826,67418.0,67417.0,0.025946]
[1718146939825,0.60114826,67418.0,67417.0,0.025946]
[1718146940496,0.60114826,67418.0,67417.0,0.024946]
[1718146940700,0.59314826,67418.0,67417.0,0.024946]
[1718146940900,0.74446819,67418.0,67417.0,0.002946]
[1718146941167,0.74446819,67418.0,67417.0,0.025946]
[1718146941385,0.74446819,67418.0,67417.0,0.024946]
[1718146941602,0.73446819,67418.0,67417.0,0.023946]
[1718146941858,0.73746819,67418.0,67417.0,0.025946]
[1718146942066,0.74446819,67418.0,67417.0,0.025946]
[1718146944820,0.72446819,67418.0,67417.0,0.025946]
[1718146945023,0.74446819,67418.0,67417.0,0.025946]
[1718146946308,0.82155762,67418.0,67417.0,0.002]
[1718146946515,0.74446819,67418.0,67417.0,0.002]
[1718146959156,0.74446819,67418.0,67417.0,0.002946]
[1718146964408,0.72446819,67418.0,67417.0,0.002946]
[1718146967465,0.57206819,67418.0,67417.0,0.002946]
[1718146968475,0.57206819,67418.0,67417.0,0.025946]
[1718146971551,0.12892026,67418.0,67417.0,0.025946]
[1718146971756,0.02892026,67418.0,67417.0,0.025946]
[1718146971965,0.02892026,67418.0,67417.0,0.14900553]
[1718146971966,0.12892026,67418.0,67417.0,0.14900553]
[1718146972380,0.12892026,67418.0,67417.0,0.025946]
[1718146973201,0.12192026,67418.0,67417.0,0.024946]
[1718146973504,0.02192026,67418.0,67417.0,0.025946]
[1718146973636,0.02892026,67418.0,67417.0,0.025946]
[1718146973836,0.12892026,67418.0,67417.0,0.025946]
[1718146974052,0.12592026,67418.0,67417.0,0.024946]
[1718146974291,0.12592026,67418.0,67417.0,0.002946]
[1718146974292,0.12892026,67418.0,67417.0,0.002946]
[1718146974527,0.12892026,67418.0,67417.0,0.025946]
[1718146974787,0.27724826,67418.0,67417.0,0.025946]
[1718146978329,0.29724826,67418.0,67417.0,0.025946]
[1718146978761,0.27724826,67418.0,67417.0,0.025946]
[1718146978980,0.29724826,67418.0,67417.0,0.025946]
[1718146979204,0.27724826,67418.0,67417.0,0.025946]
[1718146987320,0.29724826,67418.0,67417.0,0.025946]
[1718146988218,0.53764826,67418.0,67417.0,0.025946]
[1718146989760,0.51764826,67418.0,67417.0,0.025946]
[1718146989964,0.53764826,67418.0,67417.0,0.025946]
[1718146991242,0.58945569,67418.0,67417.0,0.025946]
[1718146991525,0.40885569,67418.0,67417.0,0.025946]
[1718146991938,0.42885569,67418.0,67417.0,0.025946]
[1718146993226,0.42885705,67418.0,67417.0,0.025946]
[1718146995784,0.40885705,67418.0,67417.0,0.025946]
[1718146995926,0.42885705,67418.0,67417.0,0.025946]
[1718146996356,0.57317698,67418.0,67417.0,0.025946]
[1718146996791,0.65630728,67418.0,67417.0,0.025946]
[1718146997392,0.55317698,67418.0,67417.0,0.025946]
[1718146998297,0.57317698,67418.0,67417.0,0.025946]
[1718146999284,0.55317698,67418.0,67417.0,0.025946]
[1718146999470,0.42156819,67418.0,67417.0,0.025946]
[1718146999659,0.47337537,67418.0,67417.0,0.025946]
[1718146999904,0.47337563,67418.0,67417.0,0.025946]
[1718147001819,0.49337563,67418.0,67417.0,0.025946]
[1718147002020,0.57367183,67418.0,67417.0,0.025946]
[1718147003039,0.47337563,67418.0,67417.0,0.025946]
[1718147003248,0.56537499,67418.0,67417.0,0.025946]
[1718147004205,0.54537499,67418.0,67417.0,0.025946]
[1718147005009,0.56537499,67418.0,67417.0,0.025946]
[1718147007458,0.49356819,67418.0,67417.0,0.025946]
[1718147007664,0.54542425,67418.0,67417.0,0.025946]
[1718147009121,0.02892026,67418.0,67417.0,0.2761506]
[1718147009345,0.02892026,67418.0,67417.0,0.39920854]
[1718147009552,0.02892026,67418.0,67417.0,0.45573103]
[1718147009762,0.02892026,67418.0,67417.0,0.49593108]
[1718147009971,0.02892026,67418.0,67417.0,0.49593093]
[1718147010176,0.02892026,67418.0,67417.0,0.38900394]
[1718147011227,0.02892026,67418.0,67417.0,0.43345887]
[1718147012084,0.02892026,67418.0,67417.0,0.31040053]
[1718147012290,0.02892026,67418.0,67417.0,0.43343771]
[1718147013669,0.02792026,67418.0,67417.0,0.43343771]
[1718147015251,0.02792026,67418.0,67417.0,0.38899059]
[1718147018650,0.01,67418.0,67417.0,0.48099059]
[1718147018847,0.01,67418.0,67417.0,0.46099059]
[1718147019053,0.01,67418.0,67417.0,0.52783302]
[1718147019505,0.01,67418.0,67417.0,0.59450371]
[1718147019713,0.01,67418.0,67417.0,0.59350371]
[1718147019714,0.007,67418.0,67417.0,0.59350371]
[1718147019920,0.01737234,67421.0,67418.0,0.2431]
[1718147020143,0.1,67429.0,67421.0,0.2431]
[1718147020366,0.1,67429.0,67422.0,0.12304459]
[1718147020595,0.1,67429.0,67423.0,0.023]
[1718147021048,0.1,67429.0,67422.0,0.023]
[1718147021895,0.248304,67429.0,67422.0,0.023]
[1718147022539,0.251304,67429.0,67422.0,0.024]
[1718147024136,0.256304,67429.0,67423.0,0.001]
[1718147024608,0.2693765,67429.0,67422.0,0.024]
[1718147024971,0.2743765,67429.0,67422.0,0.025]
[1718147025386,0.2713765,67429.0,67422.0,0.024]
[1718147025587,0.2713765,67429.0,67423.0,0.001]
[1718147025793,0.2743765,67429.0,67423.0,0.001]
[1718147026031,0.148306,67428.0,67422.0,0.024]
[1718147026242,0.1,67427.0,67422.0,0.024]
[1718147026467,0.1,67427.0,67422.0,0.025]
[1718147026732,0.1,67427.0,67422.0,0.023]
[1718147026860,0.1,67427.0,67423.0,0.001]
[1718147027490,0.1,67427.0,67422.0,0.023]
[1718147027645,0.1,67427.0,67422.0,0.024]
[1718147027854,0.105,67427.0,67422.0,0.024]
[1718147028275,0.1,67427.0,67422.0,0.023]
[1718147028475,0.1,67427.0,67423.0,0.001]
[1718147028909,0.1,67427.0,67422.0,0.023]
[1718147029417,0.103,67427.0,67422.0,0.024]
[1718147029607,0.105,67427.0,67423.0,0.001]
[1718147029986,0.108,67427.0,67423.0,0.002]